fUSD/lending_fUSD_20240211
["ID","MTS","AMOUNT","RATE_DAILY","PERIOD"]
[313758327,1707682239003,-305648.54255143,0.00023,2]
[313758328,1707682239012,-3285669.84785454,0.00023,2]
[313758329,1707682239081,-28551.69459248,0.00023,2]
[313758330,1707682239093,-16007.84937047,0.00023,2]
[313758331,1707682239126,-87614.1811993,0.00023,2]
[313758332,1707682239139,-2410.01001848,0.00023,2]
[313758333,1707682239151,-731.50666818,0.00023,2]
[313758334,1707682239162,-741.27723955,0.00023,2]
[313758335,1707682239175,-420.8888349,0.00023,2]
[313758336,1707682239187,-313.89851893,0.00023,2]
[313758346,1707682240090,-415.33597391,0.00023,2]
[313758347,1707682240835,-10067.82509561,0.00023,2]
[313758357,1707682242614,-6640.904357,0.00023,2]
[313758358,1707682242675,-2752.15436124,0.00023,2]
[313758359,1707682242686,-299.60972117,0.00023,2]
[313758360,1707682242698,-1322.44598604,0.00023,2]
[313758361,1707682242710,-511.612035,0.00023,2]
[313758362,1707682242722,-3204.43925734,0.00023,2]
[313758363,1707682242838,-500.0,0.00023,2]
[313758364,1707682242849,-550.34626894,0.00023,2]
[313758365,1707682242922,-697.10793557,0.00023,2]
[313758366,1707682242934,-716.96043868,0.00023,2]
[313758378,1707682245830,-488.8727,0.000228,2]
[313758379,1707682245841,-2744.6719,0.00023,2]
[313758383,1707682470164,168.15,0.00020835,2]
[313758384,1707682543777,861.08,0.00022359,2]
[313758385,1707682582049,250.0,0.00022157,2]
[313758386,1707682653735,205.0,0.00021519,2]
[313758387,1707682690837,150.24,0.00022067,2]
[313758390,1707682865133,250.0,0.00021918,2]
[313758395,1707682983114,159.74,0.00019908,2]
[313758396,1707682983338,159.74,0.00022172,2]
[313758397,1707683017584,311.13,0.0002181,2]
[313758413,1707683373693,205.0,0.00021924,2]
[313758414,1707683374528,192.43,0.00021791,2]
[313758435,1707683433466,-159.64699017,0.00022505,2]
[313758436,1707683433477,-234.4556882,0.00022506,2]
[313758437,1707683433485,-722.71,0.00022518,2]
[313758438,1707683433495,-721.26,0.00022518,2]
[313758439,1707683433505,-710.13,0.00022518,2]
[313758440,1707683433514,-714.47,0.00022518,2]
[313758441,1707683433523,-734.09,0.00022518,2]
[313758442,1707683433532,-716.44,0.00022518,2]
[313758443,1707683433542,-730.72,0.00022518,2]
[313758444,1707683433552,-737.72,0.00022519,2]
[313758445,1707683433561,-720.22,0.00022519,2]
[313758446,1707683433570,-69.81804038,0.00022519,2]
[313758447,1707683433591,-665.63195962,0.00022519,2]
[313758448,1707683433600,-91.19369897,0.00022521,2]
[313758449,1707683433619,-622.57630103,0.00022521,2]
[313758450,1707683433628,-205.26751634,0.00022523,2]
[313758451,1707683433639,-518.35248366,0.00022523,2]
[313758452,1707683433649,-499.99,0.00022523,2]
[313758453,1707683433658,-411.31,0.00022523,2]
[313758454,1707683433667,-738.44,0.00022527,2]
[313758455,1707683433677,-737.74,0.00022533,2]
[313758456,1707683433686,-715.09,0.00022546,2]
[313758457,1707683433695,-727.88,0.0002257,2]
[313758458,1707683433704,-1609.69751634,0.0002257,2]
[313758459,1707683433723,-615.09431998,0.0002257,2]
[313758460,1707683433735,-576.66636164,0.0002257,2]
[313758461,1707683433744,-733.83,0.00022612,2]
[313758462,1707683433753,-649.56006744,0.00022689,2]
[313758463,1707683433766,-73.41993256,0.00022689,2]
[313758464,1707683433775,-488.8727,0.000227,2]
[313758465,1707683433784,-2288.3777,0.000227,2]
[313758466,1707683433794,-211.03726897,0.00022798,2]
[313758467,1707683433803,-151.0212,0.00022798,3]
[313758468,1707683433813,-151.0212,0.00022798,3]
[313758469,1707683433822,-151.0212,0.00022798,3]
[313758470,1707683433831,-151.0212,0.00022798,3]
[313758471,1707683433841,-151.0212,0.00022798,3]
[313758472,1707683433851,-151.0212,0.00022798,3]
[313758473,1707683433860,-151.0212,0.00022798,3]
[313758474,1707683433869,-151.0212,0.00022798,3]
[313758475,1707683433879,-151.0212,0.00022798,3]
[313758476,1707683433888,-151.0212,0.00022798,3]
[313758477,1707683433898,-151.0212,0.00022798,3]
[313758478,1707683433907,-151.0212,0.00022798,3]
[313758479,1707683433916,-151.0212,0.00022798,3]
[313758480,1707683433925,-151.0212,0.00022798,3]
[313758481,1707683433934,-151.0212,0.00022798,3]
[313758482,1707683433943,-151.0212,0.00022798,3]
[313758483,1707683433952,-151.0212,0.00022798,3]
[313758484,1707683433962,-151.0212,0.00022798,3]
[313758485,1707683433971,-151.0212,0.00022798,3]
[313758486,1707683433980,-151.0212,0.00022798,3]
[313758487,1707683433989,-151.0212,0.00022798,3]
[313758488,1707683433998,-151.0212,0.00022798,3]
[313758489,1707683434007,-151.0212,0.00022798,3]
[313758490,1707683434016,-151.0212,0.00022798,3]
[313758491,1707683434026,-151.0212,0.00022798,3]
[313758492,1707683434035,-151.0212,0.00022798,3]
[313758493,1707683434045,-151.0212,0.00022798,3]
[313758494,1707683434054,-151.0212,0.00022798,3]
[313758495,1707683434063,-151.0212,0.00022798,3]
[313758496,1707683434072,-151.0212,0.00022798,3]
[313758497,1707683434081,-151.0212,0.00022798,3]
[313758498,1707683434090,-151.0212,0.00022798,3]
[313758499,1707683434099,-151.0212,0.00022798,3]
[313758500,1707683434109,-151.0212,0.00022798,3]
[313758501,1707683434118,-151.0212,0.00022798,3]
[313758502,1707683434127,-151.0212,0.00022798,3]
[313758503,1707683434136,-151.0212,0.00022798,3]
[313758504,1707683434146,-151.0212,0.00022798,3]
[313758505,1707683434156,-151.0212,0.00022798,3]
[313758506,1707683434165,-151.0212,0.00022798,3]
[313758507,1707683434175,-408.65821158,0.00022799,2]
[313758508,1707683434184,-73034.53747085,0.000228,2]
[313758509,1707683434196,-16667.4901112,0.000228,2]
[313758514,1707683437684,-967.9,0.000228,2]
[313758515,1707683437735,-995.54699017,0.000228,2]
[313758516,1707683437746,-364.51150882,0.000228,2]
[313758517,1707683437900,-7453.36791896,0.000228,2]
[313758518,1707683437910,-58011.36667522,0.000228,2]
[313758519,1707683437921,-40353.03542478,0.000228,2]
[313758520,1707683437930,-717.46,0.00022832,2]
[313758521,1707683437939,-8312.17464911,0.00022899,2]
[313758522,1707683437948,-726.62,0.000229,2]
[313758523,1707683437958,-713.84,0.000229,2]
[313758524,1707683437967,-172.7619059,0.000229,2]
[313758525,1707683437977,-1749.40031247,0.000229,2]
[313758526,1707683437987,-184.96227971,0.000229,2]
[313758527,1707683437997,-502.4537841,0.000229,2]
[313758528,1707683438006,-2672.30584405,0.000229,2]
[313758529,1707683438018,-170.68784693,0.00022988,2]
[313758530,1707683438029,-2206.57701654,0.00022998,2]
[313758531,1707683438039,-10632.36085003,0.00022998,2]
[313758532,1707683438049,-455.5610436,0.00022998,2]
[313758533,1707683438059,-802.9349404,0.00022998,2]
[313758534,1707683438068,-723.31330951,0.00022998,2]
[313758536,1707683438077,-241536.62782488,0.00022998,2]
[313758538,1707683438090,-120782.6010112,0.00022998,2]
[313758540,1707683438101,-47309.21494803,0.00022998,2]
[313758543,1707683438122,-35760.39035028,0.00022998,2]
[313758545,1707683438132,-164.15941111,0.00022998,2]
[313758547,1707683438141,-6391.65381737,0.00022998,2]
[313758549,1707683438151,-31845.30800432,0.00022999,2]
[313758551,1707683438161,-500.0,0.00022999,2]
[313758553,1707683438171,-500.0,0.00022999,2]
[313758555,1707683438182,-500.0,0.00022999,2]
[313758556,1707683438192,-290.47290728,0.00022999,2]
[313758557,1707683438201,-235.32159405,0.00022999,2]
[313758558,1707683438210,-306967.10480953,0.00022999,2]
[313758559,1707683438219,-1213554.59339985,0.00023,2]
[313758560,1707683438228,-2002663.71248998,0.00023,2]
[313758561,1707683438252,-42831.8056751,0.00023,2]
[313758562,1707683438263,-14187.44619049,0.00023,2]
[313758563,1707683438274,-3518.91188734,0.00023,2]
[313758564,1707683438290,-3533.88886504,0.00023,2]
[313758568,1707683440292,-7486.44299997,0.00023,2]
[313758569,1707683441102,-693.85921481,0.00023,2]
[313758570,1707683441116,-2597.20978411,0.00023,2]
[313758571,1707683441140,-4541.15871702,0.00023,2]
[313758643,1707683443867,-373.5132,0.000229,2]
[313758645,1707683443883,-322.49733852,0.000229,2]
[313758647,1707683443892,-2614.67858831,0.00023,2]
[313758650,1707683443903,-483.01434995,0.00023,2]
[313758652,1707683443918,-5996.06783974,0.00023,2]
[313758675,1707683444490,-372.9333312,0.00023,2]
[313758676,1707683444511,-668.00492978,0.00023,2]
[313758677,1707683444537,-3967.93261648,0.00023,2]
[313758678,1707683444548,-6388.46467851,0.00023,2]
[313758682,1707683445688,-159.42156778,0.00022998,2]
[313758683,1707683445698,-99.04472682,0.00022999,2]
[313758684,1707683445744,-301.28174445,0.00022999,2]
[313758687,1707683463669,205.0,0.00021924,2]
[313758699,1707683664450,151.0212,0.00022401,3]
[313758719,1707684012255,276.4,0.0002071,2]
[313758730,1707684208011,196.59,0.00022142,2]
[313758740,1707684454031,205.0,0.00021462,2]
[313758741,1707684459576,751.09,0.00022099,2]
[313758742,1707684520194,262.58,0.00020176,2]
[313758748,1707684546903,250.0,0.00022041,2]
[313758770,1707684631851,-365.97440234,0.00022439,2]
[313758771,1707684631861,-262.58,0.0002244,2]
[313758772,1707684631871,-300.52509986,0.0002249,2]
[313758773,1707684631881,-151.69,0.00022509,2]
[313758774,1707684631891,-151.69,0.00022676,2]
[313758775,1707684631902,-1000.0,0.000227,2]
[313758776,1707684631911,-200.35,0.00022729,2]
[313758777,1707684631921,-248.91,0.00022736,2]
[313758778,1707684631930,-160.12701155,0.00022799,2]
[313758779,1707684631940,-151.69,0.00022844,2]
[313758780,1707684631950,-224.99,0.00022844,5]
[313758781,1707684631959,-680.42030537,0.00022897,2]
[313758782,1707684631968,-484.7793,0.00022898,2]
[313758783,1707684631978,-516.646,0.00022899,2]
[313758784,1707684631987,-2296.864,0.00022899,2]
[313758785,1707684631996,-680.42030538,0.00022899,2]
[313758786,1707684632006,-828.42563349,0.00022899,2]
[313758787,1707684632015,-366.53450788,0.00022899,2]
[313758788,1707684632024,-1737.38343613,0.000229,2]
[313758789,1707684632037,-1553.06,0.000229,2]
[313758790,1707684632049,-1709.55656387,0.000229,2]
[313758791,1707684632059,-2845.95805435,0.000229,2]
[313758792,1707684632068,-170.68784693,0.00022989,2]
[313758793,1707684632078,-656.99485917,0.00022996,2]
[313758794,1707684632089,-3687.42269539,0.00022997,2]
[313758795,1707684632100,-1535.38624878,0.00022997,2]
[313758796,1707684632110,-610.95722107,0.00022997,2]
[313758797,1707684632133,-5640.96982275,0.00022997,2]
[313758798,1707684632146,-2516.29781283,0.00022997,2]
[313758799,1707684632159,-963.54444357,0.00022997,2]
[313758800,1707684632180,-369.42556037,0.00022997,2]
[313758801,1707684632197,-389.45713017,0.00022997,2]
[313758802,1707684632207,-2328.75332884,0.00022997,2]
[313758803,1707684632216,-232.82031935,0.00022997,2]
[313758804,1707684632226,-1170.05691146,0.00022997,2]
[313758805,1707684632235,-162.31856081,0.00022997,2]
[313758806,1707684632245,-19230.53126028,0.00022997,2]
[313758807,1707684632255,-499.99,0.00022997,2]
[313758808,1707684632265,-201.57387579,0.00022998,2]
[313758809,1707684632275,-296.47072073,0.00022998,2]
[313758810,1707684632285,-639.53689933,0.00022998,2]
[313758811,1707684632295,-155.0,0.00022998,2]
[313758812,1707684632306,-200.45944243,0.00022998,2]
[313758813,1707684632316,-156.50903036,0.00022998,2]
[313758814,1707684632326,-251.57324471,0.00022998,2]
[313758815,1707684632336,-199.98123495,0.00022998,2]
[313758816,1707684632346,-216.32078387,0.00022998,2]
[313758817,1707684632355,-234.6196376,0.00022998,2]
[313758818,1707684632365,-151.0212,0.00022998,3]
[313758819,1707684632375,-1517.81702201,0.00022998,2]
[313758820,1707684632385,-355.25498507,0.00022998,2]
[313758821,1707684632394,-311.43526537,0.00022998,2]
[313758822,1707684632405,-487.99435337,0.00022998,2]
[313758823,1707684632415,-8988.08674796,0.00022998,2]
[313758824,1707684632425,-151.0212,0.00022998,3]
[313758825,1707684632435,-151.0212,0.00022998,3]
[313758826,1707684632444,-151.0212,0.00022998,3]
[313758827,1707684632454,-151.0212,0.00022998,3]
[313758828,1707684632463,-151.0212,0.00022998,3]
[313758829,1707684632473,-151.0212,0.00022998,3]
[313758830,1707684632483,-151.0212,0.00022998,3]
[313758831,1707684632492,-151.0212,0.00022998,3]
[313758832,1707684632502,-151.0212,0.00022998,3]
[313758833,1707684632511,-151.0212,0.00022998,3]
[313758834,1707684632521,-151.0212,0.00022998,3]
[313758835,1707684632530,-151.0212,0.00022998,3]
[313758836,1707684632540,-151.0212,0.00022998,3]
[313758837,1707684632549,-151.0212,0.00022998,3]
[313758838,1707684632559,-151.0212,0.00022998,3]
[313758839,1707684632572,-151.0212,0.00022998,3]
[313758840,1707684632582,-151.0212,0.00022998,3]
[313758841,1707684632592,-151.0212,0.00022998,3]
[313758842,1707684632602,-151.0212,0.00022998,3]
[313758843,1707684632612,-151.0212,0.00022998,3]
[313758844,1707684632622,-151.0212,0.00022998,3]
[313758845,1707684632631,-151.0212,0.00022998,3]
[313758846,1707684632641,-151.0212,0.00022998,3]
[313758847,1707684632653,-151.0212,0.00022998,3]
[313758848,1707684632665,-151.0212,0.00022998,3]
[313758849,1707684632675,-151.0212,0.00022998,3]
[313758850,1707684632685,-151.0212,0.00022998,3]
[313758851,1707684632695,-151.0212,0.00022998,3]
[313758852,1707684632705,-151.0212,0.00022998,3]
[313758853,1707684632715,-151.0212,0.00022998,3]
[313758854,1707684632724,-151.0212,0.00022998,3]
[313758855,1707684632735,-151.0212,0.00022998,3]
[313758856,1707684632744,-151.0212,0.00022998,3]
[313758857,1707684632754,-151.0212,0.00022998,3]
[313758858,1707684632764,-151.0212,0.00022998,3]
[313758859,1707684632774,-151.0212,0.00022998,3]
[313758860,1707684632783,-151.0212,0.00022998,3]
[313758861,1707684632793,-151.0212,0.00022998,3]
[313758862,1707684632802,-151.0212,0.00022998,3]
[313758863,1707684632812,-151.0212,0.00022998,3]
[313758864,1707684632821,-88.46708118,0.00022999,2]
[313758865,1707684632831,-289.93338006,0.00022999,2]
[313758866,1707684632845,-713.41617074,0.00022999,2]
[313758867,1707684632856,-152132.23823222,0.00022999,2]
[313758868,1707684632871,-479.70601001,0.00022999,2]
[313758869,1707684632883,-2232.90621236,0.00022999,2]
[313758870,1707684632895,-431.72341497,0.00022999,2]
[313758871,1707684632907,-3485.27784583,0.00022999,2]
[313758872,1707684632920,-241228.2291513,0.00022999,2]
[313758873,1707684632932,-824.46006217,0.00022999,2]
[313758874,1707684632945,-173405.34076292,0.00022999,2]
[313758875,1707684632957,-35996.5093088,0.00022999,2]
[313758876,1707684632968,-158734.65642048,0.00022999,2]
[313758877,1707684632978,-78704.78738424,0.00022999,2]
[313758878,1707684632988,-206300.64714453,0.00022999,2]
[313758879,1707684632997,-704213.55178864,0.00023,2]
[313758889,1707684637873,-4700.70633992,0.00023,2]
[313758890,1707684637886,-7454.60233105,0.00023,2]
[313758891,1707684637895,-241.83973937,0.00023,2]
[313758892,1707684637905,-200.0,0.00023,2]
[313758893,1707684637914,-3.3124986,0.00023,2]
[313758894,1707684637927,-2101.5,0.00023,2]
[313758895,1707684638468,-1158.77695747,0.00023,2]
[313758896,1707684638477,-150.0,0.00023,2]
[313758897,1707684638487,-151.69,0.00023011,2]
[313758898,1707684638496,-500.0,0.00023014,2]
[313758899,1707684638505,-151.69,0.00023179,2]
[313758900,1707684638515,-151.69,0.00023346,2]
[313758901,1707684638524,-151.69,0.00023514,2]
[313758902,1707684638534,-151.69,0.00023681,2]
[313758903,1707684638543,-177.04603739,0.00024,2]
[313758904,1707684638555,-2240.25952985,0.00024,2]
[313758905,1707684638655,-1513.74047015,0.00024,2]
[313758906,1707684638668,-201.69792091,0.00024,2]
[313758907,1707684638678,-19686.0,0.00024,2]
[313758908,1707684638687,-2845.95805431,0.00024082,2]
[313758909,1707684638697,-205.0,0.00024215,6]
[313758910,1707684638707,-2273.42,0.00024384,2]
[313758911,1707684638716,-3126.54,0.00024384,2]
[313758912,1707684638725,-282.99500824,0.00024558,2]
[313758913,1707684638735,-250.0,0.00024658,2]
[313758914,1707684638747,-262.58,0.00024704,2]
[313758915,1707684638757,-14011.03556221,0.0002479,2]
[313758916,1707684638766,-8880.28995861,0.0002479,2]
[313758978,1707684639391,-5130.7456036,0.0002479,2]
[313758980,1707684639400,-828.42563344,0.00024802,2]
[313758982,1707684639409,-751.09,0.00024861,2]
[313758984,1707684639419,-1147.87164748,0.00025,2]
[313758986,1707684639428,-310.66620919,0.00025,2]
[313758988,1707684639437,-688.6753384,0.00025,2]
[313758990,1707684639446,-1250.0,0.00025,3]
[313758992,1707684639456,-937.80860667,0.00025,2]
[313758994,1707684639464,-324.41864448,0.00025,2]
[313758996,1707684639473,-2589.40989043,0.00025264,2]
[313758998,1707684639486,-256.54816388,0.00025264,2]
[313759000,1707684639495,-75.44498178,0.00025478,2]
[313759005,1707684639534,-757.26768142,0.00025478,2]
[313759007,1707684639544,-1000.0,0.000255,2]
[313759009,1707684639553,-248.91,0.00025578,2]
[313759011,1707684639562,-14011.03556221,0.00026185,2]
[313759013,1707684639571,-166.96882288,0.00026413,2]
[313759015,1707684639580,-2845.95805431,0.00026445,2]
[313759017,1707684639589,-828.42563344,0.00026705,3]
[313759019,1707684639598,-262.58,0.00026967,2]
[313759021,1707684639607,-205.0,0.00026968,10]
[313759023,1707684639616,-2383.48134761,0.00027,2]
[313759025,1707684639625,-1300.0,0.00027,3]
[313759027,1707684639634,-155.0,0.00027397,2]
[313759029,1707684639644,-160.12701154,0.000274,2]
[313759031,1707684639653,-500.0,0.000274,2]
[313759033,1707684639665,-33183.66422356,0.000275,2]
[313759035,1707684639674,-155.0,0.000275,2]
[313759037,1707684639683,-419.98747208,0.00027603,2]
[313759039,1707684639693,-50000.0,0.00027604,7]
[313759041,1707684639703,-751.09,0.00027623,2]
[313759043,1707684639713,-2845.95805431,0.00027627,2]
[313759045,1707684639722,-437.694,0.00027637,2]
[313759047,1707684639731,-10000.0,0.00027731,2]
[313759049,1707684639742,-14011.03556221,0.00027827,2]
[313759051,1707684639751,-150.1,0.000279,2]
[313759053,1707684639760,-5000.0,0.000279,2]
[313759055,1707684639770,-54662.84583358,0.00028,2]
[313759057,1707684639783,-18317.21842774,0.00028,2]
[313759060,1707684639795,-736.634973,0.00028,2]
[313759122,1707684640482,-2130.27838961,0.00028,2]
[313759125,1707684640494,-3417.88621033,0.00028,2]
[313759127,1707684640506,-18728.80060288,0.00028,2]
[313759129,1707684640517,-30059.26989427,0.00028,2]
[313759439,1707684643465,-32020.74559977,0.00028,2]
[313759459,1707684643613,-2992.95289776,0.00028,2]
[313759471,1707684643723,-15457.35156591,0.00028,2]
[313759478,1707684643779,-4098.99147065,0.00028,2]
[313759526,1707684644217,-94617.90553122,0.00028,2]
[313759528,1707684644226,-334.9691894,0.000281,2]
[313759530,1707684644235,-714.49969639,0.000281,2]
[313759532,1707684644244,-705.28598362,0.000281,2]
[313759534,1707684644254,-1000.0,0.000282,2]
[313759537,1707684644263,-248.91,0.0002842,2]
[313759538,1707684644272,-828.42563344,0.00028608,4]
[313759541,1707684644282,-155.0,0.00028767,2]
[313759543,1707684644291,-2845.95805431,0.00028809,2]
[313759545,1707684644301,-1350.0,0.00029,3]
[313759547,1707684644311,-4000.0,0.00029,2]
[313759548,1707684644320,-262.58,0.00029231,2]
[313759551,1707684644329,-1016.0,0.000294,2]
[313759553,1707684644339,-14011.03556221,0.0002947,2]
[313759555,1707684644348,-228.36245335,0.000295,3]
[313759557,1707684644357,-404.72,0.00029513,2]
[313759559,1707684644366,-914.17,0.00029513,2]
[313759561,1707684644375,-404.72,0.00029513,2]
[313759563,1707684644384,-914.17,0.00029513,2]
[313759565,1707684644393,-914.17,0.00029513,2]
[313759567,1707684644402,-404.72,0.00029513,2]
[313759569,1707684644411,-914.17,0.00029513,2]
[313759571,1707684644420,-404.72,0.00029513,2]
[313759573,1707684644428,-404.72,0.00029513,2]
[313759575,1707684644437,-914.17,0.00029513,2]
[313759577,1707684644446,-1878.36,0.00029513,2]
[313759578,1707684644455,-404.72,0.00029513,2]
[313759581,1707684644464,-404.72,0.00029513,2]
[313759583,1707684644475,-404.72,0.00029513,2]
[313759585,1707684644484,-404.72,0.00029513,2]
[313759587,1707684644493,-1000.0,0.00029576,7]
[313759589,1707684644503,-1000.0,0.00029576,7]
[313759591,1707684644512,-1000.0,0.00029593,7]
[313759593,1707684644521,-205.0,0.0002972,14]
[313759595,1707684644530,-1000.0,0.0002976,7]
[313759597,1707684644539,-200.0,0.0002976,2]
[313759599,1707684644548,-200.0,0.0002976,3]
[313759601,1707684644557,-164.13888617,0.000298,6]
[313759603,1707684644566,-1000.0,0.00029842,7]
[313759605,1707684644575,-522.13744166,0.00029885,6]
[313759607,1707684644584,-320.7169745,0.00029929,6]
[313759609,1707684644593,-164.58611045,0.00029932,6]
[313759611,1707684644603,-238.83746759,0.00029932,6]
[313759612,1707684644612,-330.96619169,0.00029932,6]
[313759614,1707684644621,-1000.0,0.00029932,7]
[313759616,1707684644630,-267.1082992,0.00029932,6]
[313759618,1707684644639,-1000.0,0.00029932,7]
[313759620,1707684644648,-302.69287896,0.00029932,6]
[313759622,1707684644657,-421.45102387,0.00029932,6]
[313759624,1707684644669,-228.7386508,0.00029932,6]
[313759626,1707684644678,-1000.0,0.00029952,7]
[313759628,1707684644688,-265.95143156,0.00029977,6]
[313759630,1707684644697,-2845.95805431,0.00029991,2]
[313759632,1707684644707,-19994.800026,0.00029999,2]
[313759634,1707684644716,-360.01041936,0.0003,2]
[313759636,1707684644725,-9690.3204777,0.0003,2]
[313759638,1707684644734,-1974.21330849,0.0003,4]
[313759640,1707684644744,-176.58837034,0.0003,4]
[313759642,1707684644754,-155.0,0.0003,2]
[313759644,1707684644763,-586.48019747,0.0003,2]
[313759646,1707684644771,-23176.93343628,0.0003,2]
[313759648,1707684644781,-2000.0,0.0003,14]
[313759650,1707684644790,-153.64,0.0003,2]
[313759652,1707684644800,-153.64,0.0003,2]
[313759654,1707684644809,-3000.0,0.0003,2]
[313759655,1707684644819,-3000.0,0.0003,2]
[313759656,1707684644830,-3000.0,0.0003,2]
[313759657,1707684644839,-3000.0,0.0003,2]
[313759658,1707684644850,-3000.0,0.0003,2]
[313759659,1707684644860,-227.79347139,0.00030005,6]
[313759660,1707684644870,-209.89857225,0.00030047,6]
[313759661,1707684644879,-150.0,0.00030137,2]
[313759662,1707684644891,-155.0,0.00030137,2]
[313759663,1707684644901,-282.99500824,0.00030229,2]
[313759665,1707684644911,-196.59,0.00030361,2]
[313759667,1707684644920,-751.09,0.00030386,2]
[313759669,1707684644929,-152.0,0.00030419,3]
[313759671,1707684644938,-828.42563344,0.0003051,5]
[313759673,1707684644947,-3000.0,0.0003065,2]
[313759675,1707684644956,-832.71266319,0.00030689,2]
[313759677,1707684644966,-150.0,0.00030714,2]
[313759679,1707684644975,-150.0,0.00030818,2]
[313759681,1707684644984,-624.0,0.0003098,120]
[313759683,1707684644994,-1400.0,0.00031,3]
[313759685,1707684645003,-1000.0,0.00031,2]
[313759687,1707684645013,-14011.03556221,0.00031113,2]
[313759689,1707684645022,-2845.95805431,0.00031173,2]
[313759691,1707684645031,-248.91,0.00031262,2]
[313759693,1707684645041,-305.84,0.00031266,2]
[313759695,1707684645050,-150.0,0.00031291,2]
[313759697,1707684645059,-1130.72148681,0.0003136,2]
[313759699,1707684645068,-262.58,0.00031495,2]
[313759701,1707684645077,-1000.0,0.000315,2]
[313759704,1707684645087,-155.0,0.00031507,2]
[313759706,1707684645096,-159.0,0.00031644,5]
[313759708,1707684645106,-152.99,0.00031644,2]
[313759710,1707684645114,-180.0,0.00031644,2]
[313759712,1707684645124,-150.0,0.0003168,2]
[313759714,1707684645133,-150.0,0.0003168,2]
[313759716,1707684645143,-150.0,0.0003168,2]
[313759718,1707684645152,-150.0,0.0003168,2]
[313759720,1707684645161,-249.41188,0.0003168,2]
[313759722,1707684645170,-152.77476982,0.0003168,2]
[313759724,1707684645180,-200.0,0.00031743,2]
[313759726,1707684645189,-800.0,0.00031743,2]
[313759728,1707684645198,-10000.0,0.00031744,2]
[313759729,1707684645208,-800.0,0.00031744,2]
[313759731,1707684645217,-800.0,0.00031744,2]
[313759733,1707684645226,-500.1234748,0.00031798,4]
[313759735,1707684645235,-219242.193275,0.000318,2]
[313759737,1707684645244,-150.0,0.00031867,2]
[313759740,1707684645254,-822.16903494,0.0003197,2]
[313759742,1707684645263,-624.0,0.0003198,120]
[313759744,1707684645272,-161.72637899,0.00031998,4]
[313759745,1707684645282,-532.05261976,0.00031998,4]
[313759747,1707684645291,-2149.08139043,0.00031998,4]
[313759749,1707684645300,-439.16617914,0.00031998,4]
[313759751,1707684645309,-286.63150246,0.00031998,4]
[313759753,1707684645319,-159.88400748,0.00031998,4]
[313759755,1707684645328,-5542.7476156,0.00031999,4]
[313759758,1707684645337,-3313.68237718,0.00031999,2]
[313759760,1707684645346,-43497.36310596,0.00032,2]
[313759762,1707684645355,-721.41,0.00032,2]
[313759764,1707684645365,-900.0,0.00032,4]
[313759766,1707684645374,-150.0,0.00032,7]
[313759768,1707684645383,-200.0,0.00032,2]
[313759770,1707684645392,-2765.27829332,0.00032,4]
[313759772,1707684645401,-1586.71549892,0.00032,4]
[313759774,1707684645410,-6539.08069997,0.00032,4]
[313759776,1707684645419,-992.81037315,0.00032,2]
[313759778,1707684645428,-8066.51192583,0.00032,2]
[313759780,1707684645438,-334.96918939,0.00032,2]
[313759782,1707684645447,-714.49969638,0.00032,2]
[313759784,1707684645456,-705.28598362,0.00032,2]
[313759786,1707684645465,-99321.3141239,0.00032002,2]
[313759788,1707684645474,-274.5277973,0.00032002,2]
[313759790,1707684645485,-21555.4288449,0.00032002,2]
[313759792,1707684645493,-13177.8124075,0.00032002,2]
[313759794,1707684645502,-7617.7950197,0.00032002,2]
[313759796,1707684645512,-2245.5465717,0.00032002,2]